bitfinex/quotes_ETHUSD_20251213
["timestamp","ask_amount","ask_price","bid_price","bid_amount"]
[1765589663988,3.23602296,3091.2,3090.7,0.97154191]
[1765589664187,3.71422296,3091.2,3090.7,1.43974191]
[1765589669406,3.7133148,3091.1,3090.7,1.43974191]
[1765589675306,4.26224836,3091.1,3090.7,0.4682]
[1765589675478,0.54893356,3091.1,3090.8,0.4682]
[1765589675693,0.001,3091.2,3091.0,0.4991]
[1765589675883,0.001,3091.2,3091.1,0.9673]
[1765589677518,0.001,3091.2,3091.1,0.4991]
[1765589679519,0.001,3091.2,3091.1,0.9673]
[1765589685715,0.001,3091.2,3091.1,0.4991]
[1765589687424,0.001,3091.2,3091.1,1.1516]
[1765589688217,0.001,3091.2,3091.1,4.3866943]
[1765589689220,0.001,3091.2,3091.1,5.3581261]
[1765589694318,0.001,3091.2,3091.1,1.9387318]
[1765589694694,0.001,3091.2,3091.1,1.4705318]
[1765589697023,0.4013,3091.2,3091.1,0.9714318]
[1765589697318,0.4013,3091.2,3091.1,4.2065261]
[1765589697527,0.001,3091.2,3091.1,4.2065261]
[1765589697720,0.001,3091.2,3091.1,4.6642261]
[1765589700321,0.001,3091.2,3091.1,5.1523261]
[1765589710434,0.001,3091.2,3091.1,1.4291318]
[1765589710631,0.001,3091.2,3091.1,0.9714318]
[1765589710936,0.8718,3091.2,3091.1,0.9714318]
[1765589711107,0.8718,3091.2,3090.8,0.58047529]
[1765589711308,0.8718,3091.2,3090.9,0.58047529]
[1765589711926,0.8718,3091.2,3090.9,1.55197945]
[1765589713162,0.8718,3091.2,3090.9,0.97150416]
[1765589713163,0.0047,3091.0,3090.9,0.97150416]
[1765589713443,0.0047,3091.0,3090.3,0.97166463]
[1765589713749,0.654,3090.9,3090.3,3.23587445]
[1765589714048,0.654,3090.9,3090.4,0.58047529]
[1765589714258,0.4712,3090.8,3090.4,0.58047529]
[1765589714415,0.4712,3090.8,3090.4,1.55213992]
[1765589715547,0.40679,3090.8,3090.4,1.55213992]
[1765589716081,0.408,3090.5,3090.4,1.55213992]
[1765589716845,0.39899,3090.5,3090.4,1.55213992]
[1765589718052,0.39417,3090.5,3090.4,1.55213992]
[1765589719247,0.39417,3090.5,3090.4,4.78796699]
[1765589719552,0.1828,3090.9,3090.4,5.74606699]
[1765589719750,0.6673,3090.9,3090.4,5.74606699]
[1765589719964,0.6673,3090.9,3090.4,8.98189406]
[1765589720164,0.6673,3090.9,3090.5,0.4684]
[1765589720331,6.49443434,3091.2,3090.5,0.4684]
[1765589720332,0.51,3091.0,3090.8,0.4897]
[1765589720531,0.93305469,3091.0,3090.5,0.4684]
[1765589720744,0.4736,3090.9,3090.5,0.4684]
[1765589721867,0.93305469,3091.0,3090.8,0.4836]
[1765589723265,0.2496,3090.9,3090.5,3.70487832]
[1765589724771,0.7209,3090.9,3090.5,3.70487832]
[1765589725134,0.7167,3090.9,3090.5,3.70487832]
[1765589726931,0.71455,3090.9,3090.5,3.70487832]
[1765589728363,0.71455,3090.9,3090.5,0.4692]
[1765589728564,0.4713,3090.8,3090.4,4.78793174]
[1765589728988,0.4713,3090.8,3090.4,1.55213992]
[1765589729365,0.4633,3090.5,3090.4,1.55213992]
[1765589732613,0.4633,3090.5,3090.4,0.58047529]
[1765589733902,0.4633,3090.5,3090.3,1.55213992]
[1765589734416,0.51,3090.8,3090.4,0.9528]
[1765589734573,0.51,3090.8,3090.4,1.92446463]
[1765589736220,0.51,3090.8,3090.4,5.16025869]
[1765589739426,0.9836,3090.8,3090.4,5.16025869]
[1765589742615,0.4736,3090.7,3090.4,4.69105869]
[1765589743784,0.4736,3090.7,3090.4,3.71939406]
[1765589744184,0.4736,3090.7,3090.5,0.51]
[1765589744386,0.51,3090.8,3090.5,0.51]
[1765589744585,0.9836,3090.8,3090.5,0.51]
[1765589745223,0.4736,3090.8,3090.5,3.74571884]
[1765589745406,0.51,3090.9,3090.7,0.4836]
[1765589745592,0.4736,3090.8,3090.4,0.405504]
[1765589745797,0.4736,3090.8,3090.7,0.97159226]
[1765589746199,0.7809,3090.8,3090.7,0.97159226]
[1765589746494,0.7809,3090.8,3090.4,3.70497778]
[1765589746705,0.7809,3090.8,3090.5,0.97163946]
[1765589746885,0.4719,3090.7,3090.5,0.97163946]
[1765589747087,0.0047,3090.6,3090.5,0.97163946]
[1765589748723,0.7051,3090.9,3090.5,1.45523946]
[1765589748913,0.51,3090.8,3090.6,0.4836]
[1765589749419,0.51,3090.8,3090.6,1.45521114]
[1765589754138,0.51,3090.8,3090.7,0.4568]
[1765589754338,0.51,3090.8,3090.7,0.9456]
[1765589754489,0.51,3090.8,3090.7,1.91721114]
[1765589754825,0.51,3091.0,3090.7,1.91721114]
[1765589759019,3.23601211,3091.2,3090.9,0.4568]
[1765589759231,0.51,3091.0,3090.9,0.4568]
[1765589759822,0.51,3091.0,3090.7,0.97161114]
[1765589760123,0.51,3091.0,3090.7,1.46041114]
[1765589760493,0.4817,3090.9,3090.7,0.97161114]
[1765589760823,0.4817,3090.9,3090.1,0.1934]
[1765589760824,0.2992,3090.8,3090.2,0.58047529]
[1765589761060,0.0095,3090.6,3090.3,0.97169296]
[1765589761191,0.5195,3090.6,3090.0,0.58047529]
[1765589761391,0.4817,3090.5,3090.0,0.58047529]
[1765589761611,0.4817,3090.5,3090.1,4.20784367]
[1765589762011,0.4817,3090.5,3090.1,3.72491609]
[1765589762194,0.4817,3090.5,3090.2,0.61118066]
[1765589764938,0.3058,3090.3,3090.2,0.61118066]
[1765589767942,0.3058,3090.3,3090.0,0.405504]
[1765589768120,0.3058,3090.3,3090.1,0.97175906]
[1765589768441,0.7858,3090.3,3089.9,1.06927529]
[1765589768665,0.7858,3090.3,3090.0,0.97175906]
[1765589769613,0.3058,3090.3,3090.0,1.46055906]
[1765589774723,0.3058,3090.3,3090.0,0.97175906]
[1765589775050,0.7858,3090.3,3090.0,0.97175906]
[1765589775834,4.02176927,3090.3,3090.0,0.97175906]
[1765589776225,0.7858,3090.3,3090.0,0.97175906]
[1765589777854,4.02173636,3090.3,3090.0,0.97175906]
[1765589778057,3.54173636,3090.3,3089.8,0.58047529]
[1765589778354,0.4755,3090.1,3089.8,5.27752785]
[1765589778555,0.4755,3090.1,3089.8,0.97183461]
[1765589778760,0.1916,3089.9,3089.6,0.002]
[1765589778967,0.1885,3089.9,3089.6,0.002]
[1765589779257,0.77693033,3090.1,3089.6,0.58247529]
[1765589779435,3.23607428,3090.2,3089.8,0.4831]
[1765589779640,0.51,3090.0,3089.8,0.4831]
[1765589789969,0.298,3089.9,3089.6,1.43671332]
[1765589790172,0.7828,3089.9,3089.6,0.97391332]
[1765589790372,0.7828,3089.9,3089.6,4.21056555]
[1765589790578,0.298,3089.9,3089.6,4.21056555]
[1765589790872,0.51,3090.0,3089.8,0.4907]
[1765589791053,0.4848,3089.9,3089.6,0.002]
[1765589791258,0.3047,3089.8,3089.7,0.51]
[1765589791966,0.3047,3089.8,3089.6,0.002]
[1765589792171,0.3047,3089.8,3089.6,0.512]
[1765589792873,0.003,3089.7,3089.6,0.512]
[1765589793847,0.003,3089.7,3089.6,0.002]
[1765589793848,0.2988,3089.7,3089.6,0.002]
[1765589794071,0.7817,3089.7,3089.6,0.4868]
[1765589794272,0.7817,3089.7,3089.6,0.002]
[1765589794866,0.2988,3089.7,3089.6,0.002]
[1765589795360,0.51,3089.8,3089.6,0.4927]
[1765589799279,0.51,3089.8,3089.6,1.46465425]
[1765589799448,3.74646357,3089.8,3089.6,1.46465425]
[1765589799648,0.7817,3089.7,3089.6,0.97395425]
[1765589799871,0.7817,3089.7,3089.6,0.002]
[1765589800248,0.3006,3089.7,3089.6,0.002]
[1765589803595,0.51,3089.8,3089.6,0.002]
[1765589803800,0.51,3089.8,3089.6,0.4927]
[1765589808797,0.4811,3089.9,3089.6,0.4927]
[1765589808999,0.51,3089.8,3089.6,0.4927]
[1765589809270,0.51,3089.8,3089.6,0.9662]
[1765589809495,0.51,3089.8,3089.7,0.4907]
[1765589809713,0.51,3089.8,3089.6,0.002]
[1765589809877,0.51,3089.8,3089.7,0.4907]
[1765589810189,0.51,3090.0,3089.7,0.4907]
[1765589810388,0.51,3090.0,3089.7,0.9642]
[1765589810593,0.88461862,3090.0,3089.7,0.9642]
[1765589812396,0.4698,3089.8,3089.6,0.002]
[1765589812800,0.51,3090.0,3089.6,0.002]
[1765589813000,0.9673,3090.0,3089.6,0.4713]
[1765589813511,4.20355502,3090.0,3089.6,0.4713]
[1765589813679,4.49021501,3090.0,3089.6,0.002]
[1765589813879,0.4573,3089.9,3089.6,0.002]
[1765589815327,4.49021501,3090.0,3089.6,0.002]
[1765589815489,1.71125999,3090.0,3089.6,0.4713]
[1765589816907,4.94752301,3090.0,3089.6,0.4713]
[1765589817084,0.4573,3089.9,3089.6,0.002]
[1765589822114,4.49022301,3090.0,3089.6,0.4713]
[1765589822314,4.94752301,3090.0,3089.6,0.4713]
[1765589822514,4.49022301,3090.0,3089.6,0.002]
[1765589822714,0.4573,3089.9,3089.4,4.64268052]
[1765589822908,0.9063223,3089.9,3089.4,4.64268052]
[1765589823218,0.9063223,3089.9,3089.5,0.4693]
[1765589824619,0.4573,3089.8,3089.4,0.93654914]
[1765589825710,0.4573,3089.8,3089.4,4.17338602]
[1765589826725,0.4573,3089.8,3089.4,0.93654914]
[1765589827731,0.4698,3089.5,3089.4,0.93654914]
[1765589828212,0.4698,3089.5,3089.3,0.002]
[1765589828213,0.7838,3089.5,3089.3,0.002]
[1765589828520,0.0031,3089.4,3089.3,0.002]
[1765589837900,0.4604,3089.4,3089.3,0.002]
[1765589838304,0.0031,3089.4,3089.3,0.002]
[1765589841229,3.92476383,3089.4,3089.3,0.002]
[1765589841564,0.3045,3088.7,3088.2,0.1316464]
[1765589841780,0.3045,3088.7,3088.2,0.002]
[1765589841781,3.27339339,3088.6,3088.2,0.002]
[1765589842245,3.74759339,3088.6,3088.2,0.002]
[1765589842455,7.39194217,3088.6,3088.2,0.002]
[1765589844727,3.6442293,3088.6,3088.2,0.002]
[1765589844927,6.88194217,3088.6,3088.2,0.002]
[1765589845258,7.39194217,3088.6,3088.2,0.002]
[1765589846646,4.64034878,3088.6,3088.2,0.002]
[1765589847328,7.39194217,3088.6,3088.2,0.002]
[1765589852593,13.76194217,3088.6,3088.2,0.002]
[1765589855583,13.8916243,3088.6,3088.2,0.002]
[1765589856455,10.85369298,3088.6,3088.2,0.002]
[1765589856760,0.3016,3088.1,3087.8,0.002]
[1765589856966,2.96002588,3087.9,3087.8,0.002]
[1765589857287,5.71625176,3087.9,3087.8,0.002]
[1765589857493,3.5639345,3087.9,3087.8,0.002]
[1765589858192,6.80238134,3087.9,3087.8,0.002]
[1765589858372,7.8574532,3087.9,3087.8,0.002]
[1765589860317,11.19415437,3087.9,3087.8,0.002]
[1765589861808,11.59965837,3087.9,3087.8,0.002]
[1765589863222,11.59965837,3087.9,3087.2,1.625]
[1765589863223,30.0,3087.4,3087.2,1.625]
[1765589863441,4.88807492,3087.8,3087.2,1.625]
[1765589863442,40.05676105,3087.3,3087.2,1.625]
[1765589863741,0.405504,3086.8,3086.2,1.627]
[1765589863878,0.2096,3086.6,3086.2,1.627]
[1765589864083,3.75081079,3086.6,3086.2,2.1059]
[1765589864313,3.75081079,3086.6,3086.5,0.4695]
[1765589865081,6.82733667,3086.6,3086.5,0.002]
[1765589865285,7.30003667,3086.6,3086.5,0.002]
[1765589865507,8.41205239,3086.6,3086.5,0.002]
[1765589865908,8.41205239,3086.6,3086.5,0.4695]
[1765589865909,4.35182651,3086.6,3086.5,0.4695]
[1765589866218,3.75081079,3086.6,3086.5,0.4695]
[1765589866583,7.30003667,3086.6,3086.5,0.002]
[1765589866810,6.82733667,3086.6,3086.5,0.002]
[1765589867483,7.30003667,3086.6,3086.5,0.002]
[1765589867682,8.35400054,3086.6,3086.5,0.002]
[1765589869086,8.93447583,3086.6,3086.5,0.002]
[1765589869728,9.90769447,3086.6,3086.5,0.002]
[1765589877538,12.66392035,3086.6,3086.5,0.002]
[1765589877842,9.90769447,3086.6,3086.5,0.002]
[1765589878148,9.91057827,3086.6,3086.5,0.002]
[1765589878915,42.66968795,3086.6,3086.5,0.002]
[1765589880240,39.91057827,3086.6,3086.5,0.002]
[1765589880610,42.66968795,3086.6,3086.5,0.002]
[1765589882020,42.10197331,3086.6,3086.5,0.002]
[1765589882216,42.10197331,3086.6,3085.9,0.002]
[1765589882217,0.405504,3086.0,3085.9,0.002]
[1765589882424,3.99371368,3086.0,3085.9,0.002]
[1765589882753,3.69309003,3086.5,3085.9,0.9828]
[1765589882754,3.22139003,3086.5,3085.9,0.9828]
[1765589882937,6.47962158,3086.6,3086.4,0.4846]
[1765589883138,3.82028608,3086.6,3086.5,0.4846]
[1765589883312,4.33128608,3086.6,3086.5,0.4846]
[1765589885165,3.23981079,3086.6,3086.5,0.4846]
[1765589885358,3.75081079,3086.6,3086.5,0.9808]
[1765589888049,0.511,3086.6,3086.5,0.9808]
[1765589888255,3.75081079,3086.6,3086.5,0.9808]
[1765589889364,0.511,3086.6,3086.5,0.9808]
[1765589891437,0.511,3086.7,3086.5,0.9808]
[1765589891768,0.511,3086.7,3086.6,0.4962]
[1765589891971,0.511,3086.7,3086.6,0.9808]
[1765589892738,3.75070583,3086.7,3086.6,0.9808]
[1765589898494,3.23970583,3086.7,3086.6,0.9808]
[1765589898694,4.39862618,3086.7,3086.6,0.4846]
[1765589898991,1.15892035,3086.7,3086.6,0.9452]
[1765589899160,0.511,3086.7,3086.6,0.9452]
[1765589899366,0.511,3086.7,3086.3,0.1903]
[1765589899367,7.3144206,3086.7,3086.3,0.1903]
[1765589899565,7.3144206,3086.7,3086.3,0.6509]
[1765589899799,3.75070583,3086.7,3086.6,0.4601]
[1765589899998,3.23970583,3086.7,3086.6,0.4601]
[1765589900168,3.75070583,3086.7,3086.6,0.9207]
[1765589901478,3.23970583,3086.7,3086.6,0.9207]
[1765589901774,3.75070583,3086.7,3086.6,0.9207]
[1765589907211,0.511,3086.7,3086.6,0.9207]
[1765589909515,0.511,3086.8,3086.6,0.9207]
[1765589909715,0.511,3086.8,3086.7,0.4832]
[1765589909878,0.511,3086.8,3086.7,0.9446]
[1765589910611,3.23928606,3087.1,3086.7,3.70153695]
[1765589910799,0.511,3087.0,3086.8,0.4832]
[1765589911289,0.511,3087.0,3086.9,0.4614]
[1765589911512,3.75039099,3087.0,3086.9,0.4614]
[1765589911717,3.75039099,3087.0,3086.9,0.8446]
[1765589918534,0.511,3087.0,3086.9,0.8446]
[1765589919158,3.75039099,3087.0,3086.9,0.8446]
[1765589919338,0.46956339,3087.0,3086.9,0.8446]
[1765589921058,3.70895438,3087.0,3086.9,0.8446]
[1765589921233,3.23939099,3087.0,3086.9,0.8446]
[1765589921442,0.511,3087.1,3086.9,0.8446]
[1765589921647,0.511,3087.1,3086.6,3.23981047]
[1765589921648,0.511,3087.1,3087.0,0.4832]
[1765589921961,0.511,3087.1,3087.0,0.9446]
[1765589922963,3.75028606,3087.1,3087.0,0.9446]
[1765589923364,4.44923284,3087.1,3087.0,0.4614]
[1765589923563,4.85993284,3087.1,3086.5,2.755938]
[1765589923765,4.16098606,3087.1,3086.6,0.4832]
[1765589923953,3.75028606,3087.1,3086.6,0.4832]
[1765589924154,3.75028606,3087.1,3087.0,0.4614]
[1765589924359,6.98957212,3087.1,3086.6,0.4832]
[1765589927576,8.20876933,3087.1,3086.6,0.4832]
[1765589928892,8.20876933,3087.1,3086.6,0.44233323]
[1765589929814,7.73576933,3087.1,3086.3,0.1903]
[1765589930015,0.77357693,3087.0,3086.3,0.1903]
[1765589930973,0.77357693,3087.0,3086.4,0.4708]
[1765589931175,3.2389713,3087.4,3086.9,0.4655]
[1765589931392,0.511,3087.3,3087.0,0.4655]
[1765589931793,3.75007621,3087.3,3087.2,0.4655]
[1765589941314,3.23855171,3087.8,3087.2,3.69217319]
[1765589941517,0.511,3087.7,3087.3,0.9363]
[1765589941923,3.7496566,3087.7,3087.6,0.4655]
[1765589942246,7.4857132,3087.7,3087.2,0.4708]
[1765589942418,7.4857132,3087.7,3087.1,0.1005]
[1765589942620,0.80418731,3087.6,3087.1,0.1005]
[1765589943050,0.80418731,3087.6,3087.0,2.75587319]
[1765589943370,0.80418731,3087.6,3084.4,0.09444716]
[1765589943371,6.4779426,3087.4,3086.3,1.16306422]
[1765589943520,6.4779426,3087.4,3085.9,3.24247507]
[1765589943521,3.26687319,3087.3,3086.0,2.75587319]
[1765589943723,3.26687319,3087.3,3086.1,0.189]
[1765589943724,2.75587319,3087.1,3086.1,0.189]
[1765589944027,0.4974,3087.2,3086.1,0.189]
[1765589944252,3.25327319,3087.2,3086.1,0.6598]
[1765589944617,0.4974,3087.1,3085.9,1.05327529]
[1765589944824,0.32532732,3087.0,3085.9,1.05327529]
[1765589945023,0.511,3086.9,3085.9,1.05327529]
[1765589945224,1.0084,3086.9,3086.0,0.4708]
[1765589946874,6.47920176,3086.8,3086.0,0.4708]
[1765589947174,6.97660176,3086.8,3086.0,0.4708]
[1765589947340,1.57011298,3086.7,3086.0,0.4708]
[1765589948351,0.4974,3086.6,3086.0,0.4708]
[1765589948551,0.511,3086.5,3086.0,0.4708]
[1765589949858,3.75093797,3086.5,3086.4,0.4655]
[1765589952257,0.511,3086.5,3086.4,0.9363]
[1765589952837,3.75091576,3086.5,3086.4,0.9363]
[1765589953457,0.511,3086.5,3086.4,0.9363]
[1765589957772,0.511,3086.5,3086.1,0.0979]
[1765589957773,4.17791576,3086.5,3086.1,0.0979]
[1765589957944,4.17791576,3086.5,3085.9,0.58247529]
[1765589958140,4.67461576,3086.5,3085.9,0.4728]
[1765589958368,13.78783152,3086.5,3085.9,0.4728]
[1765589958566,0.4967,3086.4,3085.9,0.4728]
[1765589959077,15.06358584,3086.5,3085.9,0.002]
[1765589959252,0.4737,3086.4,3085.9,0.002]
[1765589959777,0.4737,3086.4,3085.9,0.4967]
[1765589960072,15.06358584,3086.5,3085.9,0.4967]
[1765589960436,0.511,3086.5,3086.4,0.593]
[1765589960853,0.511,3086.5,3086.4,1.0581]
[1765589961072,3.2397611,3086.7,3086.4,1.0581]
[1765589961249,3.2397611,3086.7,3086.6,0.4536]
[1765589961449,3.7507611,3086.7,3086.6,0.4536]
[1765589961676,7.91432592,3086.7,3086.2,3.22234241]
[1765589961875,4.1811611,3086.7,3086.3,0.4651]
[1765589964690,7.42092592,3086.7,3086.3,0.4651]
[1765589965682,7.91432592,3086.7,3086.3,0.4651]
[1765589965847,7.91432592,3086.7,3086.1,2.94104241]
[1765589966048,7.91432592,3086.7,3086.1,3.40614241]
[1765589966248,4.1811611,3086.7,3086.2,0.4651]
[1765589967079,7.42092592,3086.7,3086.2,0.4651]
[1765589967946,7.91432592,3086.7,3086.2,0.4651]
[1765589968778,7.42092592,3086.7,3086.1,0.1838]
[1765589969272,3.23991576,3086.5,3086.1,0.1838]
[1765589969658,3.23991576,3086.5,3085.9,5.99975347]
[1765589969859,0.494,3086.4,3085.9,5.99975347]
[1765589970048,0.494,3086.4,3085.9,6.46485347]
[1765589970244,3.23991576,3086.5,3086.0,0.4651]
[1765589970644,0.494,3086.5,3086.0,0.4651]
[1765589971580,0.4304,3086.1,3085.9,0.002]
[1765589972666,0.511,3086.2,3086.0,0.4536]
[1765589972870,0.511,3086.2,3086.1,0.4536]
[1765589973259,3.24008436,3086.4,3086.1,3.31404241]
[1765589973463,0.511,3086.3,3086.2,0.4651]
[1765589973984,3.24008436,3086.4,3086.2,0.4651]
[1765589973985,0.511,3086.4,3086.2,0.9187]
[1765589974190,6.47920176,3086.8,3086.3,3.21084241]
[1765589974362,0.511,3086.7,3086.3,3.67594241]
[1765589974553,3.23981079,3086.6,3086.4,0.4651]
[1765589974958,3.23981079,3086.6,3086.5,0.4536]
[1765589975461,17.33933725,3086.6,3085.9,0.002]
[1765589975662,0.4304,3086.0,3085.9,0.002]
[1765589975973,0.9424,3086.0,3085.9,0.002]
[1765589976187,0.9238,3086.0,3085.9,0.002]
[1765589976366,1.4358,3086.0,3085.9,0.002]
[1765589976765,4.67624069,3086.0,3085.9,0.002]
[1765589979092,3.75244069,3086.0,3085.9,0.9207]
[1765589979394,3.75244069,3086.0,3085.9,0.4556]
[1765589979595,4.18284069,3086.0,3085.9,0.002]
[1765589981801,5.44309777,3086.0,3085.9,0.002]
[1765589982794,4.94969777,3086.0,3085.9,0.002]
[1765589982970,3.75244069,3086.0,3085.9,0.4556]
[1765589984203,3.75244069,3086.0,3085.9,0.002]
[1765589984399,3.75244069,3086.0,3085.9,0.4556]
[1765589985708,4.18344069,3086.0,3085.9,0.002]
[1765589987087,4.975098,3086.0,3085.9,0.002]
[1765589988310,4.18344069,3086.0,3085.9,0.002]
[1765589989193,4.67624069,3086.0,3085.9,0.002]
[1765589991813,4.18344069,3086.0,3085.9,0.002]
[1765589992793,6.48067176,3086.1,3085.9,0.9306]
[1765589992984,0.512,3086.0,3085.9,0.479]
[1765589993316,0.512,3086.0,3085.9,0.002]
[1765589994605,3.75244069,3086.0,3085.9,0.4536]
[1765589997817,6.4804614,3086.2,3085.9,0.4536]
[1765589998113,0.512,3086.0,3085.9,0.4536]
[1765590001438,4.19124069,3086.0,3085.9,0.002]
[1765590001754,3.24044069,3086.0,3085.9,0.4536]
[1765590001922,3.24044069,3086.0,3085.9,0.9306]
[1765590001923,0.512,3086.0,3085.9,0.9306]
[1765590002225,3.23918113,3087.2,3085.9,10.16930545]
[1765590002439,0.97299138,3087.8,3086.6,2.86081405]
[1765590002727,7.4748132,3087.7,3087.2,0.4516]
[1765590003228,0.4855,3087.6,3087.2,0.4516]
[1765590003525,3.2386566,3087.7,3087.2,0.4516]
[1765590003712,0.512,3087.6,3087.2,0.4516]
[1765590003916,0.37506566,3087.5,3087.3,0.477]
[1765590004224,0.37506566,3087.5,3087.2,0.9286]
[1765590005130,0.37506566,3087.5,3087.4,0.4516]
[1765590006225,3.61393205,3087.5,3087.4,0.4516]
[1765590006611,7.29159844,3087.5,3086.9,0.477]
[1765590006930,7.77669844,3087.5,3086.9,0.477]
[1765590008905,7.29159844,3087.5,3086.9,0.477]
[1765590009109,6.91653278,3087.5,3086.9,0.477]
[1765590010538,6.47773278,3087.5,3086.9,0.477]
[1765590011040,6.96323278,3087.5,3086.9,0.477]
[1765590011803,10.20209917,3087.5,3086.9,0.477]
[1765590012016,0.4855,3087.4,3086.9,0.477]
[1765590013457,6.47773278,3087.5,3086.9,0.477]
[1765590015222,3.23886639,3087.5,3087.4,0.4516]
[1765590015633,7.93936692,3087.5,3087.1,0.477]
[1765590015851,0.4851,3087.4,3086.7,0.477]
[1765590016150,6.47815242,3087.3,3086.7,0.477]
[1765590016317,0.512,3087.2,3086.6,0.1032]
[1765590016644,0.4855,3087.1,3086.4,0.477]
[1765590019244,6.47878198,3087.0,3086.4,0.477]
[1765590019848,6.96428198,3087.0,3086.4,0.477]
[1765590020848,6.88459876,3087.0,3086.4,0.4369347]
[1765590021441,6.88459876,3087.0,3086.9,0.4536]
[1765590021442,3.15970777,3087.0,3086.9,0.4536]
[1765590023723,6.4785723,3087.1,3086.9,0.4536]
[1765590023922,7.22711953,3087.1,3086.9,0.4536]
[1765590024353,3.98783338,3087.1,3087.0,0.4545]
[1765590025434,3.23928615,3087.1,3087.0,0.4545]
[1765590025754,6.9481723,3087.1,3086.6,0.4947]
[1765590025951,7.4365723,3087.1,3086.6,0.4947]
[1765590027157,6.9481723,3087.1,3086.6,0.4947]
[1765590027322,0.512,3087.0,3086.6,0.4947]
[1765590027847,6.47899186,3086.9,3086.6,0.4947]
[1765590028249,6.47899186,3086.9,3086.3,2.75620977]
[1765590028250,0.4696,3086.7,3086.2,1.07517529]
[1765590028458,0.4696,3086.7,3086.1,1.07517529]
[1765590028635,0.4696,3086.7,3086.1,1.83375513]
[1765590028968,0.4696,3086.7,3086.2,0.4947]
[1765590029346,6.47899186,3086.9,3086.2,0.4947]
[1765590030264,6.47899186,3086.9,3086.2,3.73493039]
[1765590030566,3.23949593,3086.9,3086.3,0.4947]
[1765590031273,6.47899186,3086.9,3086.3,0.4947]
[1765590031657,6.96739186,3086.9,3086.3,0.4947]
[1765590034168,6.47899186,3086.9,3086.1,5.07404033]
[1765590034342,0.4884,3086.8,3086.1,5.07404033]
[1765590034544,0.4884,3086.8,3086.2,1.00210403]
[1765590035762,3.23970583,3086.7,3086.2,1.00210403]
[1765590036069,3.23970583,3086.7,3086.3,0.4947]
[1765590038272,6.47941166,3086.7,3086.3,0.4947]
[1765590038972,3.23970583,3086.7,3086.3,0.4947]
[1765590039874,6.47941166,3086.7,3086.3,0.4947]
[1765590040065,3.23970583,3086.7,3086.3,0.4947]
[1765590041165,6.47941166,3086.7,3086.3,0.4947]
[1765590041373,0.64794117,3086.6,3086.3,0.4947]
[1765590041578,6.96781166,3086.7,3086.3,0.4947]
[1765590042289,6.47941166,3086.7,3085.9,3.24252614]
[1765590042586,0.511,3086.6,3085.9,3.24252614]
[1765590042750,0.511,3086.6,3086.0,0.4947]
[1765590043484,0.4884,3086.5,3085.9,1.07717529]
[1765590043657,0.4884,3086.5,3085.9,1.8027949]
[1765590044386,3.24002073,3086.4,3085.9,1.8027949]
[1765590044787,3.24002073,3086.4,3086.0,0.4947]
[1765590045681,6.47998838,3086.5,3086.0,0.4947]
[1765590045882,0.4884,3086.4,3086.0,0.4947]
[1765590046690,6.47998838,3086.5,3086.0,0.4947]
[1765590046888,0.4884,3086.4,3085.9,0.58247529]
[1765590047189,0.4884,3086.4,3085.9,1.07717529]
[1765590047855,3.24012571,3086.3,3085.9,1.07717529]
[1765590048188,3.24012571,3086.3,3086.0,0.4947]
[1765590049856,0.4884,3086.9,3086.2,0.4545]
[1765590050156,0.511,3086.8,3086.3,0.4545]
[1765590050576,0.511,3086.8,3086.4,0.4542]
[1765590050968,7.46430176,3086.8,3086.4,0.4542]
[1765590051173,7.46430176,3086.8,3085.9,0.002]
[1765590051174,0.4898,3086.5,3085.9,0.002]
[1765590051586,0.9639,3086.5,3085.9,0.002]
[1765590051791,0.9639,3086.5,3085.9,0.4562]
[1765590051990,3.24002073,3086.4,3085.9,0.4562]
[1765590056094,6.48004146,3086.4,3085.9,0.4562]
[1765590056796,6.95414146,3086.4,3085.9,0.4562]
[1765590057386,3.71412073,3086.4,3085.9,1.03667529]
[1765590057803,3.71412073,3086.4,3086.0,0.4542]
[1765590058806,6.47941166,3086.7,3086.0,0.4542]
[1765590058992,0.4741,3086.6,3086.0,0.4542]
[1765590060706,0.4898,3086.1,3085.9,0.002]
[1765590060863,0.511,3086.0,3085.9,0.002]
[1765590061064,6.47983152,3086.5,3085.9,0.002]
[1765590061290,3.23991576,3086.5,3086.4,0.4872]
[1765590061602,0.4951,3086.0,3085.9,0.002]
[1765590061765,0.9799,3086.4,3085.9,0.002]
[1765590061966,1.54406473,3086.3,3085.9,0.4892]
[1765590062371,0.4741,3086.2,3085.9,0.002]
[1765590063609,3.24033569,3086.1,3085.9,0.002]
[1765590065204,1.0018,3086.0,3085.9,0.002]
[1765590065372,4.23404355,3086.0,3085.9,0.002]
[1765590065596,6.21002319,3086.0,3085.9,0.002]
[1765590065803,9.45046388,3086.0,3085.9,0.002]
[1765590068721,10.03093917,3086.0,3085.9,0.002]
[1765590071234,7.27279562,3086.0,3085.9,0.002]
[1765590071432,10.03093917,3086.0,3085.9,0.002]
[1765590078547,16.40093917,3086.0,3085.9,0.002]
[1765590080263,19.15908272,3086.0,3085.9,0.002]
[1765590081458,16.40093917,3086.0,3085.9,0.002]
[1765590081755,15.88893917,3086.0,3085.9,0.002]
[1765590082053,16.40093917,3086.0,3085.9,0.002]
[1765590082458,19.65903388,3086.0,3085.2,0.002]
[1765590082633,6.77846239,3085.3,3085.2,0.002]
[1765590082833,10.90231884,3085.3,3085.2,0.002]
[1765590083038,11.50841324,3085.3,3085.2,0.002]
[1765590083438,14.74958913,3085.3,3085.2,0.002]
[1765590083637,16.5486548,3085.3,3085.2,0.002]
[1765590090066,16.0366548,3085.3,3085.2,0.002]
[1765590090230,16.5486548,3085.3,3085.2,0.002]